fUSD/lending_fUSD_20251228
["ID","MTS","AMOUNT","RATE_DAILY","PERIOD"]
[399973706,1766959832008,-4879.82837852,0.00012855,2]
[399973708,1766959832019,-546.54497025,0.00012855,2]
[399973710,1766959832030,-562.249999,0.00012855,2]
[399973712,1766959832041,-503.42733945,0.00012855,2]
[399973714,1766959832052,-4351.4977131,0.00012855,2]
[399973717,1766959832071,-575.5876787,0.00012855,2]
[399973719,1766959832081,-572.0678,0.00012855,2]
[399973723,1766959835040,500.0,0.00012854,2]
[399973724,1766959835082,503.42768977,0.00012854,2]
[399973725,1766959835173,-288.27407549,0.00012855,2]
[399973726,1766959835219,500.0,0.00012854,2]
[399973727,1766959835285,500.0,0.00012854,2]
[399973728,1766959835343,500.0,0.00012854,2]
[399973729,1766959835404,500.0,0.00012854,2]
[399973730,1766959835464,500.0,0.00012854,2]
[399973731,1766959835519,500.0,0.00012854,2]
[399973732,1766959835573,500.0,0.00012854,2]
[399973733,1766959835634,500.0,0.00012854,2]
[399973734,1766959835682,500.0,0.00012854,2]
[399973735,1766959835736,500.0,0.00012854,2]
[399973736,1766959835815,500.0,0.00012854,2]
[399973737,1766959835863,500.0,0.00012854,2]
[399973738,1766959835911,500.0,0.00012854,2]
[399973739,1766959835960,441.58231023,0.00012854,2]
[399973740,1766959835991,58.41768977,0.00012854,2]
[399973741,1766959836038,500.0,0.00012854,2]
[399973742,1766959836093,500.0,0.00012854,2]
[399973743,1766959836183,500.0,0.00012854,2]
[399973744,1766959836229,500.0,0.00012854,2]
[399973745,1766959836281,500.0,0.00012854,2]
[399973746,1766959836337,500.0,0.00012854,2]
[399973747,1766959836384,500.0,0.00012854,2]
[399973748,1766959836457,500.0,0.00012854,2]
[399973749,1766959836504,500.0,0.00012854,2]
[399973750,1766959836566,500.0,0.00012854,2]
[399973751,1766959836613,500.0,0.00012854,2]
[399973752,1766959836658,500.0,0.00012854,2]
[399973753,1766959836700,500.0,0.00012854,2]
[399973754,1766959836751,500.0,0.00012854,2]
[399973755,1766959836815,500.0,0.00012854,2]
[399973756,1766959836880,500.0,0.00012854,2]
[399973757,1766959836925,500.0,0.00012854,2]
[399973758,1766959836969,234.34451149,0.00012854,2]
[399973759,1766959837032,500.0,0.00012854,2]
[399973760,1766959837115,500.0,0.00012854,2]
[399973786,1766959840128,-342.9528579,0.00012855,2]
[399973787,1766959840210,-840.20286078,0.00012855,2]
[399973788,1766959840221,-480.13153163,0.00012855,2]
[399973808,1766959840830,-496681.82881956,0.00012855,2]
[399973810,1766959840839,-309.2021275,0.00012905,2]
[399973812,1766959840848,-500.0,0.00012953,2]
[399973814,1766959840857,-179.88742996,0.00012953,2]
[399973816,1766959840866,-195.07534393,0.00012953,2]
[399973817,1766959840875,-75469.8556,0.00012954,2]
[399973818,1766959840883,-2500.0,0.00012955,2]
[399973819,1766959840893,-151.0,0.00013055,2]
[399973820,1766959840902,-244.16902631,0.00013055,2]
[399973821,1766959840915,-153.79731981,0.00013088,2]
[399973822,1766959840924,-166.66,0.00013242,2]
[399973823,1766959840933,-1000.0,0.00013288,2]
[399973824,1766959840942,-575.72,0.00013328,2]
[399973825,1766959840953,-517.06480773,0.00013423,2]
[399973826,1766959840962,-2599.38316633,0.00013423,2]
[399973827,1766959840971,-166.66,0.00013471,2]
[399973828,1766959840980,-575.72,0.00013602,2]
[399973829,1766959840989,-486.7841417,0.00013698,2]
[399973830,1766959840998,-500.0,0.00013698,2]
[399973831,1766959841007,-500.0,0.00013698,2]
[399973832,1766959841016,-500.0,0.00013698,2]
[399973833,1766959841026,-500.0,0.00013698,2]
[399973834,1766959841035,-500.0,0.00013698,2]
[399973835,1766959841044,-500.0,0.00013698,2]
[399973837,1766959841053,-500.0,0.00013698,2]
[399973839,1766959841062,-500.0,0.00013698,2]
[399973841,1766959841071,-500.0,0.00013698,2]
[399973843,1766959841080,-483.08577501,0.00013698,2]
[399973845,1766959841089,-509.65734169,0.00013698,2]
[399973847,1766959841098,-464.2399143,0.00013698,2]
[399973849,1766959841107,-500.0,0.00013698,2]
[399973851,1766959841116,-500.0,0.00013698,2]
[399973853,1766959841125,-190.55361039,0.00013698,2]
[399973855,1766959841135,-665.26,0.00013699,2]
[399973856,1766959841144,-164.60535006,0.00013699,2]
[399973858,1766959841153,-517.06480773,0.00013857,2]
[399973859,1766959841163,-2599.38316633,0.00013857,2]
[399973861,1766959841172,-575.72,0.00013876,2]
[399973863,1766959841181,-98030.31984018,0.0001405,2]
[399973865,1766959841190,-420.0,0.00014099,2]
[399973867,1766959841200,-420.0,0.00014099,2]
[399973869,1766959841209,-1680.0,0.0001414,2]
[399973871,1766959841219,-250.0,0.00014141,2]
[399973873,1766959841228,-195.0,0.00014141,2]
[399973875,1766959841238,-575.72,0.0001415,2]
[399973877,1766959841247,-255.0,0.00014163,2]
[399973879,1766959841256,-195.0,0.00014248,2]
[399973881,1766959841265,-195.0,0.00014248,2]
[399973883,1766959841275,-250.0,0.00014248,2]
[399973884,1766959841284,-195.0,0.00014248,2]
[399973886,1766959841293,-1273.33613579,0.00014248,2]
[399973888,1766959841302,-300.0,0.00014248,2]
[399973890,1766959841311,-195.0,0.00014249,2]
[399973892,1766959841320,-2478.74491766,0.00014276,2]
[399973894,1766959841329,-517.06480773,0.00014292,2]
[399973896,1766959841339,-2599.38316633,0.00014292,2]
[399973898,1766959841348,-153.79731979,0.00014359,2]
[399973900,1766959841357,-575.77461164,0.00014424,2]
[399973902,1766959841368,-500.0,0.00014573,2]
[399973904,1766959841378,-500.0,0.00014573,2]
[399973906,1766959841387,-500.0,0.00014573,2]
[399973908,1766959841397,-162.19608931,0.00014573,2]
[399973909,1766959841407,-500.0,0.00014573,2]
[399973911,1766959841416,-774.52,0.00014607,2]
[399973912,1766959841426,-1600.0,0.00014646,2]
[399973913,1766959841436,-517.06480773,0.00014727,2]
[399973914,1766959841445,-2599.38316633,0.00014727,2]
[399973915,1766959841454,-151.0,0.00014919,2]
[399973916,1766959841463,-151.0,0.00014919,2]
[399973917,1766959841473,-479.0,0.00015096,2]
[399973918,1766959841482,-1000.0,0.00015121,2]
[399973919,1766959841491,-1000.0,0.00015121,2]
[399973920,1766959841504,-500.81919324,0.00015121,2]
[399973921,1766959841514,-517.06480773,0.00015161,2]
[399973922,1766959841526,-2599.38316633,0.00015161,2]
[399973923,1766959841535,-999.0,0.00015359,3]
[399973924,1766959841545,-431.0,0.00015364,2]
[399973925,1766959841554,-150.0,0.00015419,2]
[399973926,1766959841563,-587.0,0.00015464,2]
[399973927,1766959841572,-587.0,0.00015464,2]
[399973928,1766959841581,-3797.0,0.00015552,2]
[399973929,1766959841590,-2351.0,0.00015554,2]
[399973930,1766959841599,-1075.0,0.0001556,2]
[399973931,1766959841609,-517.06480773,0.00015596,2]
[399973932,1766959841618,-2599.38316633,0.00015596,2]
[399973933,1766959841627,-1075.0,0.00015622,2]
[399973934,1766959841636,-153.79731979,0.00015629,2]
[399973935,1766959841645,-1500.0,0.00015668,2]
[399973936,1766959841654,-1500.0,0.00015668,2]
[399973937,1766959841663,-255.0,0.00015725,2]
[399973938,1766959841672,-1075.0,0.00015789,2]
[399973939,1766959841681,-1075.0,0.00015848,2]
[399973940,1766959841691,-500.0,0.00015921,2]
[399973941,1766959841700,-500.0,0.00015973,2]
[399973942,1766959841709,-1200.0,0.00016,2]
[399973943,1766959841718,-1075.0,0.00016007,2]
[399973944,1766959841727,-517.06480773,0.00016031,2]
[399973945,1766959841736,-2599.38316633,0.00016031,2]
[399973946,1766959841745,-1075.0,0.00016036,2]
[399973947,1766959841754,-2364.0,0.00016036,2]
[399973948,1766959841764,-1075.0,0.00016067,2]
[399973949,1766959841773,-1075.0,0.00016113,2]
[399973950,1766959841782,-150.99,0.00016116,2]
[399973951,1766959841792,-4482.75,0.00016116,2]
[399973952,1766959841802,-299.99,0.00016116,4]
[399973953,1766959841812,-4999.99,0.00016116,2]
[399973954,1766959841821,-150.99,0.00016116,2]
[399973955,1766959841830,-2293.62,0.00016116,2]
[399973956,1766959841839,-15940.71,0.00016116,2]
[399973957,1766959841848,-9999.99,0.00016116,2]
[399973958,1766959841861,-999.99,0.00016116,2]
[399973959,1766959841871,-29238.18,0.00016116,2]
[399973960,1766959841881,-9999.99,0.00016116,2]
[399973961,1766959841890,-9999.99,0.00016116,2]
[399973962,1766959841899,-1195.8,0.00016116,2]
[399973963,1766959841912,-227.08591326,0.00016149,2]
[399973964,1766959841921,-553.64373807,0.00016149,2]
[399973965,1766959841930,-250.0,0.00016149,2]
[399973966,1766959841939,-250.0,0.00016149,2]
[399973967,1766959841949,-642.94,0.00016149,2]
[399973968,1766959841958,-250.0,0.00016149,2]
[399973969,1766959841967,-250.0,0.00016149,2]
[399973970,1766959841976,-250.0,0.00016149,2]
[399973971,1766959841986,-250.0,0.00016149,2]
[399973972,1766959841995,-250.0,0.00016149,2]
[399973973,1766959842004,-500.0,0.00016149,2]
[399973974,1766959842014,-250.0,0.00016149,2]
[399973975,1766959842023,-322.6107,0.00016149,2]
[399973976,1766959842033,-500.0,0.00016149,2]
[399973977,1766959842043,-250.0,0.00016149,2]
[399973978,1766959842053,-500.0,0.00016149,2]
[399973979,1766959842062,-250.0,0.00016149,2]
[399973980,1766959842071,-500.0,0.00016149,2]
[399973981,1766959842080,-250.0,0.00016149,2]
[399973982,1766959842089,-500.0,0.00016149,2]
[399973983,1766959842098,-202.67282,0.00016149,2]
[399973984,1766959842108,-500.0,0.00016149,2]
[399973985,1766959842117,-500.0,0.00016149,2]
[399973986,1766959842126,-500.0,0.00016149,2]
[399973987,1766959842135,-500.0,0.00016149,2]
[399973988,1766959842145,-500.0,0.00016149,2]
[399973989,1766959842154,-627.57731337,0.00016149,2]
[399973990,1766959842164,-200.0,0.00016149,2]
[399973991,1766959842173,-207.4,0.00016149,2]
[399973992,1766959842182,-295.26733137,0.00016149,2]
[399973993,1766959842191,-2000.0,0.00016216,2]
[399973994,1766959842200,-2000.0,0.00016216,2]
[399973995,1766959842210,-2364.0,0.00016255,2]
[399973996,1766959842219,-2364.0,0.00016374,2]
[399973997,1766959842228,-1000.0,0.000164,2]
[399973998,1766959842237,-1205.9,0.00016438,2]
[399973999,1766959842246,-500.0,0.00016438,2]
[399974000,1766959842255,-500.0,0.00016438,2]
[399974001,1766959842264,-500.0,0.00016438,2]
[399974002,1766959842274,-500.0,0.00016438,2]
[399974003,1766959842284,-500.0,0.00016438,2]
[399974004,1766959842293,-500.0,0.00016438,2]
[399974005,1766959842302,-177.7174795,0.00016438,2]
[399974006,1766959842311,-500.0,0.00016438,2]
[399974007,1766959842321,-500.0,0.00016438,2]
[399974008,1766959842330,-500.0,0.00016438,2]
[399974009,1766959842339,-517.06480773,0.00016465,2]
[399974010,1766959842349,-2599.38316633,0.00016465,2]
[399974011,1766959842359,-1600.0,0.00016477,2]
[399974012,1766959842368,-492.0,0.00016521,2]
[399974013,1766959842377,-1000.0,0.00016521,2]
[399974014,1766959842387,-1330.846,0.00016596,2]
[399974015,1766959842397,-3460.0,0.00016596,2]
[399974016,1766959842406,-613.0,0.00016596,2]
[399974017,1766959842416,-1264.0,0.00016596,2]
[399974018,1766959842425,-432.0,0.00016596,2]
[399974019,1766959842434,-912.0,0.00016596,2]
[399974020,1766959842443,-1199.0,0.00016596,2]
[399974021,1766959842452,-1000.0,0.000166,2]
[399974022,1766959842462,-4810.0,0.00016605,2]
[399974023,1766959842471,-2431.0,0.00016605,2]
[399974024,1766959842480,-4786.756,0.00016605,2]
[399974025,1766959842490,-893.34311208,0.0001666,2]
[399974026,1766959842499,-574.12855637,0.00016697,2]
[399974027,1766959842508,-500.0,0.00016699,2]
[399974028,1766959842518,-1205.9,0.00016712,2]
[399974029,1766959842528,-500.0,0.00016726,2]
[399974030,1766959842538,-500.0,0.00016754,2]
[399974031,1766959842548,-2500.0,0.00016764,2]
[399974032,1766959842558,-336.09910628,0.00016764,2]
[399974033,1766959842568,-170.79753685,0.00016769,2]
[399974034,1766959842577,-1245.159,0.00016769,2]
[399974035,1766959842588,-500.0,0.00016781,2]
[399974036,1766959842597,-152.09829773,0.00016788,2]
[399974037,1766959842607,-1000.0,0.000168,2]
[399974038,1766959842618,-500.0,0.00016809,2]
[399974040,1766959842627,-2364.0,0.00016814,2]
[399974041,1766959842636,-151.0,0.00016833,2]
[399974042,1766959842646,-500.0,0.00016836,2]
[399974043,1766959842656,-500.0,0.00016863,2]
[399974044,1766959842666,-200.0,0.00016864,2]
[399974045,1766959842676,-500.0,0.00016891,2]
[399974046,1766959842686,-153.79731979,0.000169,2]
[399974047,1766959842696,-517.06480773,0.000169,2]
[399974048,1766959842705,-2599.38316633,0.000169,2]
[399974050,1766959842714,-171.6502218,0.000169,2]
[399974052,1766959842724,-596.76718166,0.000169,2]
[399974053,1766959842734,-352.50332532,0.000169,2]
[399974054,1766959842743,-500.0,0.00016918,2]
[399974055,1766959842752,-193.237428,0.00016921,2]
[399974056,1766959842762,-500.0,0.00016946,2]
[399974057,1766959842771,-192.0,0.00016962,2]
[399974058,1766959842780,-823.0,0.00016962,2]
[399974060,1766959842789,-500.0,0.00016973,2]
[399974062,1766959842798,-1205.9,0.00016986,2]
[399974064,1766959842807,-151.0,0.00016997,2]
[399974066,1766959842817,-1043.36845006,0.00016999,5]
[399974067,1766959842827,-271.94730123,0.00016999,2]
[399974068,1766959842836,-300.0,0.00016999,2]
[399974069,1766959842845,-300.0,0.00016999,2]
[399974070,1766959842854,-666.0,0.00016999,2]
[399974071,1766959842863,-300.0,0.00016999,2]
[399974072,1766959842874,-666.0,0.00016999,2]
[399974073,1766959842884,-300.0,0.00016999,2]
[399974074,1766959842894,-1371666.10092052,0.00017,2]
[399974075,1766959842907,-80000.0,0.00017,2]
[399974076,1766959842919,-1546013.14239561,0.00017,2]
[399974078,1766959846002,-151.0,0.00015434,2]
[399974079,1766959846013,-151.0,0.00016149,2]
[399974080,1766959846023,-195.33522105,0.00016149,2]
[399974081,1766959846033,-2.66477895,0.00016605,2]
[399974082,1766959846060,-561.33522105,0.00016605,2]
[399974083,1766959846071,-7894.98716656,0.00017,2]
[399974084,1766959846083,-988.49382925,0.00017,2]
[399974085,1766959846097,-4787.58517645,0.00017,2]
[399974086,1766959846108,-1236.613284,0.00017,2]
[399974087,1766959846118,-5911.61489766,0.00017,2]
[399974088,1766959846129,-456.93,0.00017,2]
[399974089,1766959846139,-434.405,0.00017,2]
[399974128,1766959873669,500.0,0.00012854,2]
[399974129,1766959873715,500.0,0.00012854,2]
[399974130,1766959873754,500.0,0.00012854,2]
[399974131,1766959873794,500.0,0.00012854,2]
[399974132,1766959873835,500.0,0.00012854,2]
[399974133,1766959873880,500.0,0.00012854,2]
[399974134,1766959873988,500.0,0.00012854,2]
[399974135,1766959874034,500.0,0.00012854,2]
[399974136,1766959874083,500.0,0.00012854,2]
[399974137,1766959874131,500.0,0.00012854,2]
[399974138,1766959874181,500.0,0.00012854,2]
[399974139,1766959874236,500.0,0.00012854,2]
[399974140,1766959874284,500.0,0.00012854,2]
[399974141,1766959874335,500.0,0.00012854,2]
[399974142,1766959874387,500.0,0.00012854,2]
[399974143,1766959874435,500.0,0.00012854,2]
[399974144,1766959874492,500.0,0.00012854,2]
[399974145,1766959874549,500.0,0.00012854,2]
[399974146,1766959874595,500.0,0.00012854,2]
[399974147,1766959874648,500.0,0.00012854,2]
[399974148,1766959874855,0.01,0.00012854,2]
[399974149,1766959874884,499.99,0.00012854,2]
[399974150,1766959874928,500.0,0.00012854,2]
[399974151,1766959874975,500.0,0.00012854,2]
[399974152,1766959875023,500.0,0.00012854,2]
[399974153,1766959875073,500.0,0.00012854,2]
[399974154,1766959875129,500.0,0.00012854,2]
[399974155,1766959875176,622.03952956,0.00012854,2]
[399974156,1766959875227,500.0,0.00012854,2]
[399974157,1766959905087,500.0,0.00012854,2]
[399974158,1766959905164,550.0,0.00012854,2]
[399974159,1766959905213,500.0,0.00012854,2]
[399974160,1766959905260,500.0,0.00012854,2]
[399974161,1766959905473,500.0,0.00012854,2]
[399974162,1766959905514,500.0,0.00012854,2]
[399974163,1766959905554,500.0,0.00012854,2]
[399974164,1766959905598,500.0,0.00012854,2]
[399974165,1766959917452,1827.98047044,0.00012755,2]
[399974166,1766959917481,10000.01,0.00012755,2]
[399974167,1766959917509,10000.01,0.00012755,2]
[399974168,1766959917536,10000.01,0.00012755,2]
[399974169,1766959917562,10000.01,0.00012755,2]
[399974170,1766959917589,10000.01,0.00012755,2]
[399974171,1766959917616,10000.01,0.00012755,2]
[399974172,1766959917644,10000.01,0.00012755,2]
[399974173,1766959917670,10000.01,0.00012755,2]
[399974174,1766959917697,10000.01,0.00012755,2]
[399974175,1766959918650,-302.00611386,0.00012755,2]
[399974176,1766959920802,-207.4,0.00012755,2]
[399974177,1766959921600,300.0,0.00012754,2]
[399974178,1766959922877,-452.35058792,0.00012755,2]
[399974179,1766959925001,-341.16975742,0.00012755,2]
[399974180,1766959926482,-415.60601092,0.00012755,2]
[399974181,1766959929559,-258.31429703,0.00012755,2]
[399974182,1766959930941,-162.74,0.00012755,2]
[399974183,1766959933457,-170.87836276,0.00012755,2]
[399974184,1766959935651,-238.02179816,0.00012755,2]
[399974185,1766959937127,-243.80804706,0.00012755,2]
[399974186,1766959939409,1043.36845006,0.00012754,3]
[399974187,1766959939658,-166.93819676,0.00012755,2]
[399974188,1766959941253,-352.18656946,0.00012755,2]
[399974189,1766959943500,-259.36606633,0.00012755,2]
[399974190,1766959945515,-159.44808783,0.00012755,2]
[399974191,1766959946914,-222.8058211,0.00012755,2]
[399974192,1766959949445,-162.8662351,0.00012755,2]
[399974193,1766959952980,-251.1868518,0.00012755,2]
[399974194,1766959957444,-218.9903641,0.00012755,2]
[399974195,1766959958849,-325.56477699,0.00012755,2]
[399974196,1766959962886,-174.72569709,0.00012755,2]
[399974197,1766959966047,374.6334482,0.00012655,2]
[399974198,1766959966786,-265.79197358,0.00012755,2]
[399974199,1766959968365,-213.09068168,0.00012755,2]
[399974200,1766959972008,-256.79390013,0.00012755,2]
[399974201,1766959975064,-190.82446847,0.00012755,2]
[399974202,1766959976624,-279.48633976,0.00012755,2]
[399974203,1766959978163,-208.61837519,0.00012755,2]
[399974204,1766959981282,300.0,0.00012754,2]
[399974205,1766959981368,-208.56207089,0.00012755,2]
[399974206,1766959983081,-190.56397186,0.00012755,2]
[399974207,1766959985128,-202.2247571,0.00012755,2]
[399974208,1766959987136,-390.0,0.00012755,2]
[399974209,1766959990601,-218.4614165,0.00012755,2]
[399974210,1766959992809,-243.11394327,0.00012755,2]
[399974211,1766959994686,-287.94946186,0.00012755,2]
[399974212,1766959997585,-300.0,0.00012755,2]
[399974213,1766959999035,-200.13488385,0.00012755,2]
[399974214,1766960002198,-240.72728583,0.00012755,2]
[399974215,1766960005072,-299.3087587,0.00012755,2]
[399974216,1766960006544,-703.30915352,0.00012755,2]
[399974217,1766960007951,-206.23950714,0.00012755,2]
[399974218,1766960008264,2457.61329423,0.00012655,2]
[399974219,1766960010635,-912.10157944,0.00012755,2]
[399974220,1766960014060,-316.98917704,0.00012755,2]
[399974221,1766960016571,-301.7390988,0.00012755,2]
[399974222,1766960018933,-300.86586413,0.00012755,2]
[399974223,1766960022782,-257.0468125,0.00012755,2]
[399974224,1766960024267,-251.78707284,0.00012755,2]
[399974225,1766960026189,-256.0,0.00012755,2]
[399974226,1766960030324,210.93933679,0.00012655,2]
[399974227,1766960030503,-190.30025053,0.00012755,2]
[399974228,1766960032564,-266.95326472,0.00012755,2]
[399974229,1766960034029,-177.69608338,0.00012755,2]
[399974230,1766960037281,-160.34407081,0.00012755,2]
[399974231,1766960038701,-174.81199944,0.00012755,2]
[399974232,1766960040717,-174.64776622,0.00012755,2]
[399974233,1766960041316,300.0,0.00012754,2]
[399974234,1766960045132,-278.54693503,0.00012755,2]
[399974235,1766960046656,-320.21220242,0.00012755,2]
[399974236,1766960050247,-377.09126673,0.00012755,2]
[399974237,1766960053289,-177.5113,0.00012755,2]
[399974238,1766960054783,-277.8180708,0.00012755,2]
[399974239,1766960058711,-487.89217036,0.00012755,2]
[399974240,1766960061296,-373.37230186,0.00012755,2]
[399974241,1766960063342,-334.41174626,0.00012755,2]
[399974242,1766960065912,-170.48221502,0.00012755,2]
[399974243,1766960069490,-224.56179504,0.00012755,2]
[399974244,1766960070940,-215.57405543,0.00012755,2]
[399974245,1766960074029,-333.82944524,0.00012755,2]
[399974246,1766960074507,395.04401,0.00012691,2]
[399974247,1766960077229,-198.47900106,0.00012755,2]
[399974248,1766960079410,-165.49172365,0.00012755,2]
[399974249,1766960080847,-500.0,0.00012755,2]
[399974250,1766960086189,-153.25117766,0.00012755,2]
[399974251,1766960087027,1413.374225,0.00012691,2]
[399974252,1766960089348,-494.52616474,0.00012755,2]
[399974253,1766960099491,153.251178,0.00012691,2]
[399974254,1766960101175,1200.0,0.00012754,2]
[399974255,1766960101398,300.0,0.00012754,2]
[399974256,1766960101735,300.0,0.00012754,2]
[399974257,1766960101786,150.0,0.00012754,2]
[399974258,1766960104200,177.98743808,0.00012655,2]
[399974259,1766960106084,245.2290954,0.00012754,2]
[399974260,1766960120761,500.0,0.00012754,2]
[399974261,1766960120813,500.0,0.00012754,2]
[399974262,1766960120868,500.0,0.00012754,2]
[399974263,1766960120908,221.9379743,0.00012754,2]
[399974264,1766960120935,278.0620257,0.00012754,2]
[399974265,1766960120974,500.0,0.00012754,2]
[399974266,1766960121020,500.0,0.00012754,2]
[399974267,1766960121067,500.0,0.00012754,2]
[399974268,1766960121110,500.0,0.00012754,2]
[399974269,1766960121157,500.0,0.00012754,2]
[399974270,1766960121200,500.0,0.00012754,2]
[399974271,1766960121242,500.0,0.00012754,2]
[399974272,1766960121286,471.67849201,0.00012754,2]
[399974273,1766960121335,500.0,0.00012754,2]
[399974274,1766960121453,500.0,0.00012754,2]
[399974275,1766960138643,1445.811,0.000125,2]
[399974276,1766960138684,169.576,0.000125,2]
[399974277,1766960139960,500.0,0.00012754,2]
[399974278,1766960169057,500.0,0.00012754,2]
[399974279,1766960221254,300.0,0.00012754,2]
[399974280,1766960249558,1350.4183,0.00012655,2]
[399974281,1766960282001,150.0,0.00012754,2]
[399974282,1766960285948,171.66036678,0.00012754,2]
[399974283,1766960300983,162.80381551,0.00012754,2]
[399974284,1766960301008,337.19618449,0.00012754,2]
[399974285,1766960301066,500.0,0.00012754,2]
[399974286,1766960301104,500.0,0.00012754,2]
[399974287,1766960301142,500.0,0.00012754,2]
[399974288,1766960301230,497.1678492,0.00012754,2]
[399974289,1766960321252,500.0,0.00012754,2]
[399974290,1766960321354,428.99631669,0.00012754,2]
[399974291,1766960324477,600.00000001,0.00012754,2]
[399974292,1766960341391,300.0,0.00012754,2]
[399974293,1766960349424,177.98743804,0.00012655,2]
[399974294,1766960356686,500.0,0.00012754,2]
[399974295,1766960377767,2500.0,0.00012655,2]
[399974296,1766960386115,180.87789984,0.00012754,2]
[399974297,1766960388450,500.0,0.00012754,2]
[399974298,1766960394660,1977.78431173,0.00012655,2]
[399974299,1766960394685,234.06765305,0.00012655,2]
[399974300,1766960401488,300.0,0.00012754,2]
[399974301,1766960401535,1200.0,0.00012754,2]
[399974302,1766960401596,300.0,0.00012754,2]
[399974303,1766960403627,255.0,0.00012755,2]
[399974304,1766960408262,200.0,0.00012755,2]
[399974305,1766960420431,500.0,0.00012754,2]
[399974306,1766960452628,500.0,0.00012754,2]
[399974307,1766960461415,150.0,0.00012754,2]
[399974308,1766960465571,500.0,0.00012655,2]
[399974309,1766960467887,-142.7,0.00021918,30]
[399974310,1766960467915,-7.3,0.00026244,30]
[399974311,1766960473379,-150.0,0.00026244,30]
[399974312,1766960476344,492.28954569,0.00012655,2]
[399974313,1766960477578,-48.41,0.00026244,30]
[399974314,1766960477602,-101.59,0.00028384,30]
[399974315,1766960486028,-94.08070286,0.00028384,30]
[399974316,1766960486059,-105.91929714,0.00030136,30]
[399974317,1766960488775,-200.0,0.00030136,30]
[399974318,1766960490671,-194.08070286,0.00030136,30]
[399974319,1766960490693,-5.91929714,0.00030136,30]
[399974320,1766960493534,-200.0,0.00030136,30]
[399974321,1766960504947,-200.0,0.00030136,30]
[399974322,1766960514616,5368.65280126,0.00012655,2]
[399974323,1766960514641,10000.01,0.00012655,2]
[399974324,1766960514663,10000.01,0.00012655,2]
[399974325,1766960514964,10000.01,0.00012655,2]
[399974326,1766960514987,10000.01,0.00012655,2]
[399974327,1766960515010,10000.01,0.00012655,2]
[399974328,1766960515033,10000.01,0.00012655,2]
[399974329,1766960515056,10000.01,0.00012655,2]
[399974330,1766960515079,101.13279874,0.00012655,2]
[399974331,1766960520799,2500.0,0.00012655,2]
[399974332,1766960529702,-94.08070286,0.00030136,30]
[399974333,1766960529727,-105.91929714,0.00030136,30]
[399974334,1766960533334,-200.0,0.00030136,30]
[399974335,1766960541559,500.0,0.00012754,2]
[399974336,1766960551531,500.0,0.00012754,2]
[399974337,1766960551578,500.0,0.00012754,2]
[399974338,1766960580395,500.0,0.00012754,2]
[399974339,1766960589857,177.98743804,0.00012655,2]
[399974342,1766960612426,500.0,0.00012754,2]
[399974343,1766960641434,150.0,0.00012754,2]
[399974344,1766960643097,300.0,0.00012754,2]
[399974345,1766960644565,500.0,0.00012754,2]
[399974346,1766960676846,453.62848322,0.00012754,2]
[399974347,1766960677201,154.85,6.64e-05,2]